[Event "*** Titled Tuesday Blitz"]
[Site "Chess.com"]
[Date "2020.05.12"]
[Round "2"]
[White "Nagimov_Artiom"]
[Black "tgpgoat"]
[Result "1-0"]
[WhiteElo "2398"]
[BlackElo "2094"]
[TimeControl "180+1"]
[EndTime "10:15:23 PDT"]
[Termination "Nagimov_Artiom won by resignation"]

1. d4 {[%clk 0:03:00.9]} 1... Nf6 {[%clk 0:02:57.9]} 2. Nf3 {[%clk 0:03:00.8]}
2... d5 {[%clk 0:02:54.3]} 3. c4 {[%clk 0:02:59.8]} 3... c6 {[%clk 0:02:54.3]}
4. e3 {[%clk 0:02:55.4]} 4... e6 {[%clk 0:02:49]} 5. Nc3 {[%clk 0:02:55.3]} 5...
Bd6 {[%clk 0:02:46.9]} 6. Qc2 {[%clk 0:02:55.4]} 6... Nbd7 {[%clk 0:02:45]} 7.
b3 {[%clk 0:02:55.4]} 7... b6 {[%clk 0:02:44.4]} 8. Be2 {[%clk 0:02:54.4]} 8...
Bb7 {[%clk 0:02:43.4]} 9. O-O {[%clk 0:02:54.5]} 9... O-O {[%clk 0:02:43.1]} 10.
Bb2 {[%clk 0:02:55.1]} 10... Rc8 {[%clk 0:02:42.8]} 11. Rad1 {[%clk 0:02:54.9]}
11... a6 {[%clk 0:02:42.7]} 12. Rfe1 {[%clk 0:02:51.4]} 12... c5 {[%clk
0:02:42.8]} 13. cxd5 {[%clk 0:02:50.9]} 13... Nxd5 {[%clk 0:02:41.6]} 14. Nxd5
{[%clk 0:02:48.7]} 14... Bxd5 {[%clk 0:02:39.5]} 15. e4 {[%clk 0:02:45]} 15...
cxd4 {[%clk 0:02:36.4]} 16. Qb1 {[%clk 0:02:44.7]} 16... Bb7 {[%clk 0:02:32.5]}
17. Bxd4 {[%clk 0:02:44.7]} 17... Qe7 {[%clk 0:02:31.4]} 18. h3 {[%clk
0:02:21.9]} 18... Bc5 {[%clk 0:02:27.6]} 19. e5 {[%clk 0:02:13.7]} 19... Bxd4
{[%clk 0:02:26]} 20. Rxd4 {[%clk 0:02:13]} 20... Rfd8 {[%clk 0:02:18.6]} 21.
Red1 {[%clk 0:02:12.5]} 21... Nc5 {[%clk 0:02:10.1]} 22. b4 {[%clk 0:02:12.6]}
22... Nd7 {[%clk 0:02:05.9]} 23. Qd3 {[%clk 0:02:12.1]} 23... Bc6 {[%clk
0:01:40.5]} 24. Qxa6 {[%clk 0:01:59.3]} 24... Bxf3 {[%clk 0:01:37.2]} 25. Bxf3
{[%clk 0:01:55.6]} 25... Nxe5 {[%clk 0:01:36.5]} 26. Be2 {[%clk 0:01:40]} 26...
Rxd4 {[%clk 0:01:29.7]} 27. Rxd4 {[%clk 0:01:38.8]} 27... Rc1+ {[%clk 0:01:29]}
28. Kh2 {[%clk 0:01:35.7]} 28... Qc7 {[%clk 0:01:28.9]} 29. g3 {[%clk
0:01:35.9]} 29... Rc2 {[%clk 0:01:26.9]} 30. Qa8+ {[%clk 0:01:32.7]} 30... Qc8
{[%clk 0:01:24.3]} 31. Rd8+ {[%clk 0:01:32.7]} 1-0

[Event "*** Titled Tuesday Blitz"]
[Site "Chess.com"]
[Date "2020.05.12"]
[Round "2"]
[White "LizaSolovyova"]
[Black "1f3_2g41-0"]
[Result "1-0"]
[WhiteElo "2582"]
[BlackElo "2304"]
[TimeControl "180+1"]
[EndTime "10:15:25 PDT"]
[Termination "LizaSolovyova won by checkmate"]

1. d4 {[%clk 0:03:00.9]} 1... Nf6 {[%clk 0:02:59.7]} 2. c4 {[%clk 0:02:59.8]}
2... g6 {[%clk 0:02:59.6]} 3. Nc3 {[%clk 0:03:00.1]} 3... d5 {[%clk 0:02:58.6]}
4. e4 {[%clk 0:02:58.9]} 4... dxe4 {[%clk 0:02:56.4]} 5. f3 {[%clk 0:02:58.4]}
5... exf3 {[%clk 0:02:52.9]} 6. Nxf3 {[%clk 0:02:59.3]} 6... Bg7 {[%clk
0:02:53.1]} 7. Bg5 {[%clk 0:02:57.2]} 7... O-O {[%clk 0:02:53]} 8. Be2 {[%clk
0:02:52.7]} 8... b6 {[%clk 0:02:49.1]} 9. Qd2 {[%clk 0:02:48.6]} 9... Bb7 {[%clk
0:02:47.2]} 10. O-O-O {[%clk 0:02:39.1]} 10... Nbd7 {[%clk 0:02:43.1]} 11. Bh6
{[%clk 0:02:34.7]} 11... Bxh6 {[%clk 0:02:39]} 12. Qxh6 {[%clk 0:02:35]} 12...
Ng4 {[%clk 0:02:38.9]} 13. Qh4 {[%clk 0:02:33.1]} 13... Ne3 {[%clk 0:02:35.9]}
14. Rd3 {[%clk 0:02:24.9]} 14... Nxc4 {[%clk 0:02:23.9]} 15. Ng5 {[%clk
0:02:22.5]} 15... Nf6 {[%clk 0:02:22.9]} 16. Rf1 {[%clk 0:02:15.6]} 16... h5
{[%clk 0:02:17.5]} 17. g4 {[%clk 0:02:12.8]} 17... Kg7 {[%clk 0:02:00.6]} 18.
gxh5 {[%clk 0:02:12]} 18... Rh8 {[%clk 0:02:00.6]} 19. Qg3 {[%clk 0:02:01.4]}
19... Rh6 {[%clk 0:01:32.3]} 20. hxg6 {[%clk 0:01:51.3]} 20... Rxg6 {[%clk
0:01:31.8]} 21. Rg1 {[%clk 0:01:51.4]} 21... Nd6 {[%clk 0:01:29.5]} 22. Ne6+
{[%clk 0:01:50.8]} 22... fxe6 {[%clk 0:01:19.9]} 23. Qxg6+ {[%clk 0:01:50.2]}
23... Kf8 {[%clk 0:01:20.8]} 24. Rh3 {[%clk 0:01:46.1]} 24... Nf7 {[%clk
0:01:17.6]} 25. Bh5 {[%clk 0:01:39.5]} 25... Nxh5 {[%clk 0:01:02.8]} 26. Qg8#
{[%clk 0:01:38.7]} 1-0

[Event "*** Titled Tuesday Blitz"]
[Site "Chess.com"]
[Date "2020.05.12"]
[Round "2"]
[White "Caisachess"]
[Black "hedgehog280"]
[Result "1/2-1/2"]
[WhiteElo "2309"]
[BlackElo "2614"]
[TimeControl "180+1"]
[EndTime "10:15:30 PDT"]
[Termination "Game drawn by agreement"]

1. e4 {[%clk 0:03:00.9]} 1... c5 {[%clk 0:02:57.5]} 2. c3 {[%clk 0:03:00.7]}
2... g6 {[%clk 0:02:58.4]} 3. d4 {[%clk 0:03:00.5]} 3... d5 {[%clk 0:02:58.1]}
4. exd5 {[%clk 0:03:00.4]} 4... Qxd5 {[%clk 0:02:57.8]} 5. Nf3 {[%clk
0:03:00.9]} 5... Bg7 {[%clk 0:02:55.1]} 6. Be3 {[%clk 0:03:00.2]} 6... cxd4
{[%clk 0:02:53.9]} 7. Nxd4 {[%clk 0:02:56.2]} 7... Nc6 {[%clk 0:02:52.9]} 8.
Nxc6 {[%clk 0:02:45.7]} 8... Qxc6 {[%clk 0:02:51.3]} 9. Nd2 {[%clk 0:02:44.7]}
9... Nf6 {[%clk 0:02:50.8]} 10. Nf3 {[%clk 0:02:44.7]} 10... O-O {[%clk
0:02:49.4]} 11. Be2 {[%clk 0:02:43.3]} 11... Qc7 {[%clk 0:02:46]} 12. h3 {[%clk
0:02:42.7]} 12... Bf5 {[%clk 0:02:45.3]} 13. O-O {[%clk 0:02:42.2]} 13... Rfd8
{[%clk 0:02:45.5]} 14. Qa4 {[%clk 0:02:40.5]} 14... h6 {[%clk 0:02:40]} 15. Rad1
{[%clk 0:02:39.7]} 15... Nd5 {[%clk 0:02:35.1]} 16. Bc1 {[%clk 0:02:26.8]} 16...
Nb6 {[%clk 0:02:32.9]} 17. Qa3 {[%clk 0:02:03.4]} 17... e5 {[%clk 0:02:22.5]}
18. Be3 {[%clk 0:01:55]} 18... Nc4 {[%clk 0:02:15.9]} 19. Bxc4 {[%clk 0:01:54]}
19... Qxc4 {[%clk 0:02:15.7]} 20. Rxd8+ {[%clk 0:01:47.1]} 20... Rxd8 {[%clk
0:02:15.6]} 21. Qxa7 {[%clk 0:01:47.3]} 21... b5 {[%clk 0:02:07.1]} 22. a3
{[%clk 0:01:44]} 22... Qb3 {[%clk 0:01:54.3]} 23. Qe7 {[%clk 0:01:32.4]} 23...
Rd5 {[%clk 0:01:50.4]} 24. Qb4 {[%clk 0:01:30]} 24... Qc2 {[%clk 0:01:46.9]} 25.
Rc1 {[%clk 0:01:14.1]} 25... Qe2 {[%clk 0:01:45.2]} 26. Re1 {[%clk 0:01:12.3]}
26... Qc2 {[%clk 0:01:44]} 27. Rc1 {[%clk 0:01:05.8]} 1/2-1/2

[Event "*** Titled Tuesday Blitz"]
[Site "Chess.com"]
[Date "2020.05.12"]
[Round "2"]
[White "CalinGheorghiu"]
[Black "NicoChasin"]
[Result "0-1"]
[WhiteElo "2320"]
[BlackElo "2639"]
[TimeControl "180+1"]
[EndTime "10:15:30 PDT"]
[Termination "NicoChasin won by resignation"]

1. e4 {[%clk 0:02:59.5]} 1... c5 {[%clk 0:03:00.3]} 2. Nf3 {[%clk 0:02:59.2]}
2... e6 {[%clk 0:03:00.9]} 3. g3 {[%clk 0:02:56.3]} 3... Nc6 {[%clk 0:03:00.6]}
4. Bg2 {[%clk 0:02:55.6]} 4... Nf6 {[%clk 0:02:57.3]} 5. Qe2 {[%clk 0:02:53.7]}
5... d5 {[%clk 0:02:56.1]} 6. e5 {[%clk 0:02:52.4]} 6... Nd7 {[%clk 0:02:55.8]}
7. O-O {[%clk 0:02:50.2]} 7... Be7 {[%clk 0:02:55.5]} 8. c3 {[%clk 0:02:46.7]}
8... b6 {[%clk 0:02:55]} 9. a4 {[%clk 0:02:41.3]} 9... a5 {[%clk 0:02:55]} 10.
Na3 {[%clk 0:02:40.7]} 10... O-O {[%clk 0:02:53.3]} 11. Nb5 {[%clk 0:02:30.4]}
11... Na7 {[%clk 0:02:47]} 12. d4 {[%clk 0:02:27.7]} 12... Nxb5 {[%clk
0:02:45.9]} 13. axb5 {[%clk 0:02:27.7]} 13... f6 {[%clk 0:02:45.1]} 14. exf6
{[%clk 0:02:21.8]} 14... Nxf6 {[%clk 0:02:46]} 15. Ne5 {[%clk 0:02:21.7]} 15...
Bd6 {[%clk 0:02:42.3]} 16. b3 {[%clk 0:02:05.3]} 16... Nd7 {[%clk 0:02:17.2]}
17. f4 {[%clk 0:01:55.3]} 17... Nxe5 {[%clk 0:02:04.6]} 18. fxe5 {[%clk
0:01:52.6]} 18... Rxf1+ {[%clk 0:02:04.8]} 19. Qxf1 {[%clk 0:01:50]} 19... Be7
{[%clk 0:02:05.3]} 20. Be3 {[%clk 0:01:36.6]} 20... cxd4 {[%clk 0:02:04.5]} 21.
Bxd4 {[%clk 0:01:22.4]} 21... Bc5 {[%clk 0:02:04.1]} 22. Bxc5 {[%clk 0:01:12.6]}
22... bxc5 {[%clk 0:02:05]} 23. c4 {[%clk 0:01:13]} 23... Bb7 {[%clk 0:02:01.8]}
24. Qd3 {[%clk 0:01:00.4]} 24... Qb6 {[%clk 0:01:48.1]} 25. cxd5 {[%clk
0:00:55]} 25... c4+ {[%clk 0:01:47.4]} 0-1

[Event "*** Titled Tuesday Blitz"]
[Site "Chess.com"]
[Date "2020.05.12"]
[Round "2"]
[White "BogdanBelyakov89"]
[Black "joppie2"]
[Result "0-1"]
[WhiteElo "2550"]
[BlackElo "2870"]
[TimeControl "180+1"]
[EndTime "10:15:36 PDT"]
[Termination "joppie2 won by resignation"]

1. e4 {[%clk 0:03:00.9]} 1... e5 {[%clk 0:02:57]} 2. Nf3 {[%clk 0:03:00.5]} 2...
Nc6 {[%clk 0:02:55.5]} 3. c3 {[%clk 0:02:59.7]} 3... Nf6 {[%clk 0:02:52]} 4. d4
{[%clk 0:02:59.6]} 4... exd4 {[%clk 0:02:51]} 5. e5 {[%clk 0:02:58.5]} 5... Nd5
{[%clk 0:02:51.6]} 6. cxd4 {[%clk 0:02:57.8]} 6... Bb4+ {[%clk 0:02:52.1]} 7.
Bd2 {[%clk 0:02:51]} 7... d6 {[%clk 0:02:52.5]} 8. Bb5 {[%clk 0:02:43.2]} 8...
O-O {[%clk 0:02:47.8]} 9. O-O {[%clk 0:02:38.3]} 9... Bg4 {[%clk 0:02:41]} 10.
Bxc6 {[%clk 0:02:31.9]} 10... bxc6 {[%clk 0:02:41.9]} 11. exd6 {[%clk
0:02:27.1]} 11... Bxd6 {[%clk 0:02:40.9]} 12. Nc3 {[%clk 0:02:24.6]} 12... Re8
{[%clk 0:02:39.1]} 13. h3 {[%clk 0:02:20.8]} 13... Bh5 {[%clk 0:02:38.3]} 14.
Re1 {[%clk 0:02:19.5]} 14... Rxe1+ {[%clk 0:02:37.4]} 15. Bxe1 {[%clk
0:02:19.2]} 15... Qf6 {[%clk 0:02:36.6]} 16. Ne4 {[%clk 0:02:10.9]} 16... Qg6
{[%clk 0:02:26.6]} 17. Nxd6 {[%clk 0:01:53.7]} 17... Nf4 {[%clk 0:02:22.1]} 18.
Nh4 {[%clk 0:01:42.5]} 18... Qxd6 {[%clk 0:02:17.9]} 19. Qb3 {[%clk 0:01:26.7]}
19... Qf6 {[%clk 0:02:10.3]} 20. f3 {[%clk 0:00:32.1]} 20... g5 {[%clk
0:02:06.6]} 21. g4 {[%clk 0:00:29.8]} 21... gxh4 {[%clk 0:02:02.4]} 22. gxh5
{[%clk 0:00:29.9]} 22... Qg5+ {[%clk 0:02:02.2]} 23. Kf2 {[%clk 0:00:30.2]}
23... Re8 {[%clk 0:01:58]} 0-1

[Event "*** Titled Tuesday Blitz"]
[Site "Chess.com"]
[Date "2020.05.12"]
[Round "2"]
[White "Pomegranate988"]
[Black "kinga2008"]
[Result "0-1"]
[WhiteElo "2512"]
[BlackElo "2217"]
[TimeControl "180+1"]
[EndTime "10:15:41 PDT"]
[Termination "kinga2008 won on time"]

1. d4 {[%clk 0:03:00.9]} 1... Nf6 {[%clk 0:02:54.3]} 2. c4 {[%clk 0:03:00.3]}
2... g6 {[%clk 0:02:44]} 3. Nc3 {[%clk 0:02:59.2]} 3... d6 {[%clk 0:02:44.1]} 4.
e4 {[%clk 0:02:58.6]} 4... Bg7 {[%clk 0:02:41.4]} 5. Nf3 {[%clk 0:02:58.5]} 5...
O-O {[%clk 0:02:41.4]} 6. h3 {[%clk 0:02:59]} 6... Nbd7 {[%clk 0:02:40.3]} 7.
Be2 {[%clk 0:02:57.6]} 7... e5 {[%clk 0:02:40.7]} 8. d5 {[%clk 0:02:57.7]} 8...
Nc5 {[%clk 0:02:39.9]} 9. Qc2 {[%clk 0:02:48.9]} 9... Nfd7 {[%clk 0:02:30.1]}
10. g4 {[%clk 0:02:45.5]} 10... f5 {[%clk 0:02:26.7]} 11. gxf5 {[%clk
0:02:42.2]} 11... gxf5 {[%clk 0:02:24.8]} 12. Rg1 {[%clk 0:02:23.9]} 12... Kh8
{[%clk 0:02:11.8]} 13. Ng5 {[%clk 0:02:22]} 13... f4 {[%clk 0:02:08.8]} 14. b4
{[%clk 0:02:19.7]} 14... h6 {[%clk 0:02:00.4]} 0-1

[Event "*** Titled Tuesday Blitz"]
[Site "Chess.com"]
[Date "2020.05.12"]
[Round "2"]
[White "yobdc"]
[Black "Bathory44"]
[Result "0-1"]
[WhiteElo "1781"]
[BlackElo "2587"]
[TimeControl "180+1"]
[EndTime "10:15:43 PDT"]
[Termination "Bathory44 won by resignation"]

1. c4 {[%clk 0:03:00.9]} 1... Nf6 {[%clk 0:02:55.9]} 2. Nc3 {[%clk 0:03:00.5]}
2... g6 {[%clk 0:02:56.3]} 3. e4 {[%clk 0:03:00.7]} 3... d6 {[%clk 0:02:56.1]}
4. d4 {[%clk 0:03:01.1]} 4... Bg7 {[%clk 0:02:56.7]} 5. Be2 {[%clk 0:03:01.6]}
5... O-O {[%clk 0:02:57.1]} 6. Bg5 {[%clk 0:03:01.8]} 6... Na6 {[%clk
0:02:56.2]} 7. Qd2 {[%clk 0:03:00.7]} 7... e5 {[%clk 0:02:54.7]} 8. d5 {[%clk
0:03:00.9]} 8... Nc5 {[%clk 0:02:52.3]} 9. f3 {[%clk 0:02:48.7]} 9... a5 {[%clk
0:02:51.7]} 10. h4 {[%clk 0:02:44]} 10... c6 {[%clk 0:02:51.2]} 11. h5 {[%clk
0:02:43.4]} 11... cxd5 {[%clk 0:02:50.9]} 12. cxd5 {[%clk 0:02:44.3]} 12... a4
{[%clk 0:02:48.4]} 13. Nh3 {[%clk 0:02:18]} 13... Qa5 {[%clk 0:02:26.3]} 14. Nf2
{[%clk 0:02:04.4]} 14... a3 {[%clk 0:02:19.5]} 15. b3 {[%clk 0:02:03.6]} 15...
Nxh5 {[%clk 0:02:14.7]} 16. Rxh5 {[%clk 0:01:25.8]} 16... gxh5 {[%clk
0:02:14.3]} 17. Be7 {[%clk 0:01:22.8]} 17... Re8 {[%clk 0:02:09.4]} 18. Bg5
{[%clk 0:01:08.9]} 18... Bd7 {[%clk 0:02:04.4]} 19. Rb1 {[%clk 0:01:00.2]} 19...
Qb4 {[%clk 0:01:58.7]} 20. Nfd1 {[%clk 0:00:59.2]} 20... f5 {[%clk 0:01:52.2]}
21. Bh6 {[%clk 0:00:57.4]} 21... Re7 {[%clk 0:01:50.1]} 22. Qg5 {[%clk
0:00:56.1]} 22... Rf7 {[%clk 0:01:50.4]} 23. f4 {[%clk 0:00:35.5]} 23... Nxe4
{[%clk 0:01:46]} 24. Qxh5 {[%clk 0:00:34.5]} 24... Nxc3 {[%clk 0:01:42.8]} 0-1

[Event "*** Titled Tuesday Blitz"]
[Site "Chess.com"]
[Date "2020.05.12"]
[Round "2"]
[White "MFBerna"]
[Black "bmt011"]
[Result "1-0"]
[WhiteElo "2387"]
[BlackElo "2046"]
[TimeControl "180+1"]
[EndTime "10:15:45 PDT"]
[Termination "MFBerna won by resignation"]

1. d4 {[%clk 0:03:00.9]} 1... Nf6 {[%clk 0:02:59.4]} 2. Nf3 {[%clk 0:03:00.1]}
2... e6 {[%clk 0:02:52.3]} 3. g3 {[%clk 0:03:00.3]} 3... b6 {[%clk 0:02:49.5]}
4. Bg2 {[%clk 0:03:00.3]} 4... Bb7 {[%clk 0:02:50.4]} 5. O-O {[%clk 0:03:00.7]}
5... Be7 {[%clk 0:02:50.1]} 6. c4 {[%clk 0:03:00.8]} 6... O-O {[%clk 0:02:49.1]}
7. Nc3 {[%clk 0:03:01]} 7... d5 {[%clk 0:02:48.1]} 8. Ne5 {[%clk 0:03:01.1]}
8... c5 {[%clk 0:02:47.5]} 9. cxd5 {[%clk 0:02:58.4]} 9... exd5 {[%clk
0:02:40.8]} 10. Bf4 {[%clk 0:02:55.3]} 10... Nh5 {[%clk 0:02:36.5]} 11. Be3
{[%clk 0:02:48.9]} 11... c4 {[%clk 0:02:34.9]} 12. Nxc4 {[%clk 0:02:48.3]} 12...
Na6 {[%clk 0:02:29]} 13. Ne5 {[%clk 0:02:41.5]} 13... f5 {[%clk 0:02:21.8]} 14.
Qb3 {[%clk 0:02:39]} 14... Nf6 {[%clk 0:02:21.3]} 15. Bg5 {[%clk 0:02:37.4]}
15... Nc7 {[%clk 0:02:20.8]} 16. Rac1 {[%clk 0:02:36.8]} 16... Kh8 {[%clk
0:02:19.6]} 17. Bh3 {[%clk 0:02:25.9]} 17... Ne4 {[%clk 0:02:15.9]} 18. Bxe7
{[%clk 0:02:19]} 18... Qxe7 {[%clk 0:02:16.8]} 19. Nxe4 {[%clk 0:02:11.3]} 19...
fxe4 {[%clk 0:02:10.4]} 20. Nd7 {[%clk 0:02:05.7]} 20... Rfc8 {[%clk 0:02:04]}
21. Nc5 {[%clk 0:01:46.5]} 21... bxc5 {[%clk 0:01:55.8]} 22. Qxb7 {[%clk
0:01:47.4]} 22... Rcb8 {[%clk 0:01:52.9]} 23. Qc6 {[%clk 0:01:47.3]} 23... Rb6
{[%clk 0:01:51.2]} 24. Qxc5 {[%clk 0:01:46.3]} 24... Qxc5 {[%clk 0:01:49.2]} 25.
Rxc5 {[%clk 0:01:47.2]} 25... Na6 {[%clk 0:01:47.7]} 26. Rxd5 {[%clk 0:01:47.5]}
26... Rxb2 {[%clk 0:01:48.6]} 27. Ra5 {[%clk 0:01:39.3]} 27... Nb4 {[%clk
0:01:46.7]} 28. Rc1 {[%clk 0:01:36]} 28... Rxe2 {[%clk 0:01:39.6]} 29. Rxa7
{[%clk 0:01:31.6]} 29... Rf8 {[%clk 0:01:39]} 30. Rf7 {[%clk 0:01:21.8]} 30...
Rg8 {[%clk 0:01:33.1]} 31. a4 {[%clk 0:01:18.1]} 31... Rxf2 {[%clk 0:01:29.3]}
32. Rxf2 {[%clk 0:01:15.5]} 1-0

[Event "*** Titled Tuesday Blitz"]
[Site "Chess.com"]
[Date "2020.05.12"]
[Round "2"]
[White "Yurovskykh_Oleksandr"]
[Black "dopolian"]
[Result "0-1"]
[WhiteElo "2561"]
[BlackElo "2314"]
[TimeControl "180+1"]
[EndTime "10:15:47 PDT"]
[Termination "dopolian won by resignation"]

1. d4 {[%clk 0:03:00.9]} 1... Nf6 {[%clk 0:03:00.1]} 2. Nf3 {[%clk 0:03:00.5]}
2... e6 {[%clk 0:02:59.6]} 3. Bf4 {[%clk 0:03:00.4]} 3... d5 {[%clk 0:02:59.3]}
4. e3 {[%clk 0:03:00.4]} 4... c5 {[%clk 0:02:59.2]} 5. c3 {[%clk 0:03:00.6]}
5... Nc6 {[%clk 0:02:59.5]} 6. Nbd2 {[%clk 0:03:00.7]} 6... Bd6 {[%clk
0:02:54.6]} 7. Bg3 {[%clk 0:03:00.6]} 7... O-O {[%clk 0:02:53.1]} 8. Bb5 {[%clk
0:02:59.9]} 8... Bxg3 {[%clk 0:02:43.9]} 9. hxg3 {[%clk 0:02:59.6]} 9... Qd6
{[%clk 0:02:39.4]} 10. Bxc6 {[%clk 0:02:42.5]} 10... bxc6 {[%clk 0:02:34.9]} 11.
Ne5 {[%clk 0:02:42.7]} 11... Ba6 {[%clk 0:02:31.9]} 12. f4 {[%clk 0:02:27.6]}
12... Rab8 {[%clk 0:02:24]} 13. b3 {[%clk 0:02:18.1]} 13... cxd4 {[%clk
0:02:03.1]} 14. cxd4 {[%clk 0:02:13.1]} 14... c5 {[%clk 0:02:01.1]} 15. Kf2
{[%clk 0:00:56.8]} 15... cxd4 {[%clk 0:01:53.3]} 16. exd4 {[%clk 0:00:52.7]}
16... Rb4 {[%clk 0:01:51.6]} 0-1

[Event "*** Titled Tuesday Blitz"]
[Site "Chess.com"]
[Date "2020.05.12"]
[Round "2"]
[White "FMOlexandrProhorov"]
[Black "NZT72"]
[Result "1/2-1/2"]
[WhiteElo "2093"]
[BlackElo "2466"]
[TimeControl "180+1"]
[EndTime "10:15:48 PDT"]
[Termination "Game drawn by agreement"]

1. e4 {[%clk 0:03:00.9]} 1... e5 {[%clk 0:02:59]} 2. Nf3 {[%clk 0:03:00.2]} 2...
Nc6 {[%clk 0:02:59.2]} 3. Bb5 {[%clk 0:03:00.1]} 3... Nf6 {[%clk 0:02:59]} 4.
O-O {[%clk 0:02:57.5]} 4... Nxe4 {[%clk 0:02:58.7]} 5. Re1 {[%clk 0:02:56.9]}
5... Nd6 {[%clk 0:02:58.7]} 6. Nxe5 {[%clk 0:02:53.5]} 6... Be7 {[%clk
0:02:58.6]} 7. Bf1 {[%clk 0:02:49]} 7... Nxe5 {[%clk 0:02:58.4]} 8. Rxe5 {[%clk
0:02:48.4]} 8... O-O {[%clk 0:02:58.8]} 9. d4 {[%clk 0:02:44.2]} 9... Bf6 {[%clk
0:02:58.8]} 10. Re1 {[%clk 0:02:43.6]} 10... Re8 {[%clk 0:02:59.1]} 11. c3
{[%clk 0:02:38.9]} 11... Rxe1 {[%clk 0:02:55]} 12. Qxe1 {[%clk 0:02:38.4]} 12...
Ne8 {[%clk 0:02:53.2]} 13. Bf4 {[%clk 0:02:34.6]} 13... d5 {[%clk 0:02:51.2]}
14. Nd2 {[%clk 0:02:34.7]} 14... c6 {[%clk 0:02:46.9]} 15. Bd3 {[%clk
0:02:33.7]} 15... g6 {[%clk 0:02:47.2]} 16. Nf3 {[%clk 0:02:33.3]} 16... Ng7
{[%clk 0:02:46.6]} 17. Qd2 {[%clk 0:02:23.9]} 17... Bf5 {[%clk 0:02:44.3]} 18.
Re1 {[%clk 0:02:21.7]} 18... Bxd3 {[%clk 0:02:35.6]} 19. Qxd3 {[%clk 0:02:21.3]}
19... Nf5 {[%clk 0:02:06.6]} 20. Ne5 {[%clk 0:02:13.7]} 20... Bg7 {[%clk
0:01:57.6]} 21. h3 {[%clk 0:02:04.6]} 21... f6 {[%clk 0:01:53.9]} 22. Ng4 {[%clk
0:02:02.3]} 22... Qd7 {[%clk 0:01:52.4]} 23. Qe2 {[%clk 0:01:58.2]} 23... Kf7
{[%clk 0:01:46.2]} 24. Qd2 {[%clk 0:01:51.1]} 24... Re8 {[%clk 0:01:42.8]} 25.
Kf1 {[%clk 0:01:50.9]} 25... Rxe1+ {[%clk 0:01:37.1]} 26. Qxe1 {[%clk
0:01:50.3]} 26... Bf8 {[%clk 0:01:34.7]} 27. Qe2 {[%clk 0:01:35.4]} 27... Qe6
{[%clk 0:01:32.9]} 28. Qxe6+ {[%clk 0:01:27.8]} 28... Kxe6 {[%clk 0:01:31.5]}
29. Ke2 {[%clk 0:01:25.6]} 29... h5 {[%clk 0:01:22]} 30. Ne3 {[%clk 0:01:25.1]}
30... Nxe3 {[%clk 0:01:20.3]} 31. Kxe3 {[%clk 0:01:18.7]} 1/2-1/2

[Event "*** Titled Tuesday Blitz"]
[Site "Chess.com"]
[Date "2020.05.12"]
[Round "2"]
[White "Berardino"]
[Black "Mimsychess"]
[Result "1-0"]
[WhiteElo "2624"]
[BlackElo "2325"]
[TimeControl "180+1"]
[EndTime "10:15:50 PDT"]
[Termination "Berardino won by resignation"]

1. e4 {[%clk 0:03:00.9]} 1... c5 {[%clk 0:02:58.7]} 2. Nf3 {[%clk 0:03:00.8]}
2... e6 {[%clk 0:02:56.9]} 3. d4 {[%clk 0:03:00.6]} 3... cxd4 {[%clk 0:02:57.8]}
4. Nxd4 {[%clk 0:03:01.5]} 4... Nc6 {[%clk 0:02:56.9]} 5. Nc3 {[%clk 0:03:01]}
5... Qc7 {[%clk 0:02:56.9]} 6. Be2 {[%clk 0:03:01.1]} 6... a6 {[%clk 0:02:56.9]}
7. O-O {[%clk 0:03:01.5]} 7... Nf6 {[%clk 0:02:56.9]} 8. Kh1 {[%clk 0:03:01.6]}
8... Nxd4 {[%clk 0:02:51.5]} 9. Qxd4 {[%clk 0:03:02.5]} 9... Bc5 {[%clk
0:02:51.7]} 10. Qd3 {[%clk 0:03:03]} 10... b5 {[%clk 0:02:50.2]} 11. f4 {[%clk
0:02:57.9]} 11... Bb7 {[%clk 0:02:36.2]} 12. Bf3 {[%clk 0:02:53.8]} 12... d6
{[%clk 0:02:31.9]} 13. e5 {[%clk 0:02:35.9]} 13... dxe5 {[%clk 0:02:22.6]} 14.
fxe5 {[%clk 0:02:36.1]} 14... Nd7 {[%clk 0:02:19.3]} 15. Bxb7 {[%clk 0:02:29.5]}
15... Qxb7 {[%clk 0:02:20.2]} 16. Ne4 {[%clk 0:02:29.9]} 16... O-O-O {[%clk
0:02:09.9]} 17. Bg5 {[%clk 0:01:36.6]} 17... Rde8 {[%clk 0:01:30.4]} 18. Rxf7
{[%clk 0:01:14.8]} 18... Nxe5 {[%clk 0:01:24.6]} 19. Rxb7 {[%clk 0:01:14.8]}
19... Nxd3 {[%clk 0:01:24.8]} 20. Rf7 {[%clk 0:00:59.8]} 20... h6 {[%clk
0:01:06.8]} 21. cxd3 {[%clk 0:00:57.4]} 1-0

[Event "*** Titled Tuesday Blitz"]
[Site "Chess.com"]
[Date "2020.05.12"]
[Round "2"]
[White "Sanyura"]
[Black "allvim"]
[Result "1-0"]
[WhiteElo "2508"]
[BlackElo "2279"]
[TimeControl "180+1"]
[EndTime "10:15:51 PDT"]
[Termination "Sanyura won by checkmate"]

1. Nf3 {[%clk 0:03:00.9]} 1... Nf6 {[%clk 0:02:59.5]} 2. g3 {[%clk 0:02:57.7]}
2... g6 {[%clk 0:02:59.4]} 3. d3 {[%clk 0:02:58]} 3... Bg7 {[%clk 0:02:59.8]} 4.
Nbd2 {[%clk 0:02:58.6]} 4... O-O {[%clk 0:03:00.3]} 5. Bg2 {[%clk 0:02:59]} 5...
d6 {[%clk 0:03:01]} 6. O-O {[%clk 0:02:57.7]} 6... Nbd7 {[%clk 0:03:01]} 7. e4
{[%clk 0:02:58.6]} 7... e5 {[%clk 0:03:00.2]} 8. Ne1 {[%clk 0:02:59.1]} 8... c6
{[%clk 0:02:57.9]} 9. f4 {[%clk 0:02:59.7]} 9... a5 {[%clk 0:02:57.1]} 10. f5
{[%clk 0:02:59.9]} 10... Qb6+ {[%clk 0:02:53.9]} 11. Kh1 {[%clk 0:02:58.9]}
11... d5 {[%clk 0:02:49.1]} 12. exd5 {[%clk 0:02:56.8]} 12... cxd5 {[%clk
0:02:48.3]} 13. c4 {[%clk 0:02:56.9]} 13... h5 {[%clk 0:02:21.3]} 14. cxd5
{[%clk 0:02:56.4]} 14... Ng4 {[%clk 0:02:20.8]} 15. Qe2 {[%clk 0:02:51.3]} 15...
Ne3 {[%clk 0:02:07.1]} 16. Nc4 {[%clk 0:02:49.7]} 16... Nxc4 {[%clk 0:01:58.6]}
17. dxc4 {[%clk 0:02:50.6]} 17... Nf6 {[%clk 0:01:46.3]} 18. Be3 {[%clk
0:02:48.6]} 18... Qc7 {[%clk 0:01:42.9]} 19. c5 {[%clk 0:02:48]} 19... Bxf5
{[%clk 0:01:42.1]} 20. d6 {[%clk 0:02:46.8]} 20... Qd7 {[%clk 0:01:39.7]} 21.
Nd3 {[%clk 0:02:42.3]} 21... Ng4 {[%clk 0:01:35.6]} 22. Bg1 {[%clk 0:02:40.2]}
22... Rac8 {[%clk 0:01:11.6]} 23. h3 {[%clk 0:02:38.8]} 23... Nh6 {[%clk
0:01:12.2]} 24. Nxe5 {[%clk 0:02:37.8]} 24... Bxe5 {[%clk 0:00:56.6]} 25. Qxe5
{[%clk 0:02:37]} 25... Bxh3 {[%clk 0:00:57.3]} 26. Bd4 {[%clk 0:02:34.2]} 26...
Bxg2+ {[%clk 0:00:57.6]} 27. Kxg2 {[%clk 0:02:35]} 27... f6 {[%clk 0:00:24.6]}
28. Rxf6 {[%clk 0:02:33.8]} 28... Rxf6 {[%clk 0:00:25.5]} 29. Qxf6 {[%clk
0:02:34.7]} 29... Kh7 {[%clk 0:00:25.7]} 30. Re1 {[%clk 0:02:32]} 30... Qc6+
{[%clk 0:00:25.7]} 31. Kg1 {[%clk 0:02:31.3]} 31... Nf5 {[%clk 0:00:15]} 32.
Re7+ {[%clk 0:02:31]} 32... Kh6 {[%clk 0:00:11.5]} 33. Be3+ {[%clk 0:02:27.6]}
33... Nxe3 {[%clk 0:00:07.9]} 34. Qf4+ {[%clk 0:02:28.5]} 34... g5 {[%clk
0:00:06.2]} 35. Qf6# {[%clk 0:02:29.4]} 1-0